fUST/lending_fUST_20241105
["ID","MTS","AMOUNT","RATE_DAILY","PERIOD"]
[341340551,1730818266310,-152.0,0.00035441,2]
[341340554,1730818266330,-500.0,0.00035616,3]
[341340557,1730818266349,-6430.77,0.00035616,3]
[341340559,1730818266361,-536.46,0.00035616,3]
[341340562,1730818266379,-1182.57,0.00035616,3]
[341340565,1730818266394,-500.0,0.00035616,3]
[341340568,1730818266411,-198.15764576,0.00035616,3]
[341340570,1730818266426,-150.12,0.00035616,3]
[341340573,1730818266439,-4342.61,0.00035616,3]
[341340575,1730818266454,-2792.42,0.00035616,3]
[341340578,1730818266468,-470.58907594,0.00035616,3]
[341340580,1730818266483,-10907.81,0.00035616,3]
[341340583,1730818266497,-1203.2,0.00035616,3]
[341340585,1730818266511,-2294.71,0.00035616,3]
[341340588,1730818266525,-1321.17,0.00035616,3]
[341340590,1730818266539,-2053.35,0.00035616,3]
[341340592,1730818266553,-655.41,0.00035616,3]
[341340595,1730818266569,-1368.03,0.00035616,3]
[341340597,1730818266583,-601.61,0.00035616,3]
[341340600,1730818266597,-800.4,0.00035616,3]
[341340602,1730818266611,-470.0,0.00035682,2]
[341340605,1730818266624,-150.80549,0.000357,2]
[341340607,1730818266638,-300.0,0.000358,12]
[341340610,1730818266653,-150.12,0.0003589,3]
[341340612,1730818266666,-500.0,0.0003589,3]
[341340615,1730818266680,-6430.77,0.0003589,3]
[341340617,1730818266694,-536.46,0.0003589,3]
[341340620,1730818266708,-1182.57,0.0003589,3]
[341340622,1730818266722,-500.0,0.0003589,3]
[341340624,1730818266735,-4342.61,0.0003589,3]
[341340627,1730818266750,-2792.42,0.0003589,3]
[341340629,1730818266764,-10907.81,0.0003589,3]
[341340638,1730818266836,-1203.2,0.0003589,3]
[341340641,1730818266859,-2294.71,0.0003589,3]
[341340643,1730818266868,-1321.17,0.0003589,3]
[341340645,1730818266878,-2053.35,0.0003589,3]
[341340647,1730818266887,-655.41,0.0003589,3]
[341340649,1730818266897,-1368.03,0.0003589,3]
[341340651,1730818266907,-1942.41,0.0003589,120]
[341340653,1730818266916,-601.61,0.0003589,3]
[341340655,1730818266926,-800.4,0.0003589,3]
[341340657,1730818266935,-502.58,0.00036,120]
[341340659,1730818266944,-800.0,0.00036,120]
[341340660,1730818266953,-1008.64,0.00036,60]
[341340662,1730818266962,-252.0,0.00036,2]
[341340665,1730818266972,-541.8,0.00036,2]
[341340667,1730818266982,-2500.0,0.00036032,5]
[341340669,1730818266992,-903.34,0.000361,30]
[341340671,1730818267002,-3579.41,0.000361,30]
[341340673,1730818267011,-160.0,0.00036123,6]
[341340675,1730818267020,-213.68929601,0.00036164,3]
[341340677,1730818267029,-500.0,0.00036164,19]
[341340678,1730818267039,-310.0,0.00036164,3]
[341340680,1730818267048,-6430.77,0.00036164,3]
[341340682,1730818267058,-536.46,0.00036164,3]
[341340684,1730818267070,-1182.57,0.00036164,3]
[341340686,1730818267079,-500.0,0.00036164,3]
[341340688,1730818267089,-4342.61,0.00036164,3]
[341340690,1730818267099,-2792.42,0.00036164,3]
[341340692,1730818267109,-10907.81,0.00036164,3]
[341340694,1730818267118,-1203.2,0.00036164,3]
[341340697,1730818267128,-2294.71,0.00036164,3]
[341340699,1730818267138,-1321.17,0.00036164,3]
[341340700,1730818267147,-2053.35,0.00036164,3]
[341340701,1730818267157,-655.41,0.00036164,3]
[341340702,1730818267166,-1368.03,0.00036164,3]
[341340703,1730818267176,-601.61,0.00036164,3]
[341340704,1730818267186,-800.4,0.00036164,3]
[341340705,1730818267197,-151.0,0.00036301,120]
[341340706,1730818267206,-205.0,0.000364,120]
[341340707,1730818267216,-6430.82205842,0.00036438,3]
[341340708,1730818267226,-536.48,0.00036438,3]
[341340710,1730818267236,-1182.78363455,0.00036438,3]
[341340712,1730818267251,-171.99521489,0.00036438,3]
[341340714,1730818267260,-4342.81369752,0.00036438,3]
[341340716,1730818267270,-2792.5922667,0.00036438,3]
[341340718,1730818267279,-10908.04745437,0.00036438,3]
[341340720,1730818267290,-1203.32901096,0.00036438,3]
[341340722,1730818267299,-2294.72580839,0.00036438,3]
[341340724,1730818267308,-1321.24815134,0.00036438,3]
[341340726,1730818267323,-2053.41696833,0.00036438,3]
[341340728,1730818267333,-655.63452496,0.00036438,3]
[341340730,1730818267342,-1368.16489958,0.00036438,3]
[341340733,1730818267352,-601.62526293,0.00036438,3]
[341340735,1730818267362,-800.6226166,0.00036438,3]
[341340737,1730818267371,-367.65,0.000365,30]
[341340739,1730818267381,-152.24,0.000365,31]
[341340741,1730818267390,-152.24,0.000365,31]
[341340743,1730818267400,-152.24,0.000365,31]
[341340745,1730818267410,-152.24,0.000365,31]
[341340747,1730818267420,-152.24,0.000365,31]
[341340749,1730818267430,-152.24,0.000365,31]
[341340751,1730818267439,-152.24,0.000365,31]
[341340753,1730818267450,-152.24,0.000365,31]
[341340755,1730818267460,-152.24,0.000365,31]
[341340757,1730818267469,-152.24,0.000365,31]
[341340759,1730818267480,-152.24,0.000365,31]
[341340761,1730818267491,-152.24,0.000365,31]
[341340763,1730818267501,-152.24,0.000365,31]
[341340766,1730818267512,-152.24,0.000365,31]
[341340768,1730818267524,-152.24,0.000365,31]
[341340770,1730818267534,-152.24,0.000365,31]
[341340772,1730818267544,-152.24,0.000365,31]
[341340774,1730818267553,-152.24,0.000365,31]
[341340776,1730818267565,-152.24,0.000365,31]
[341340778,1730818267574,-152.24,0.000365,31]
[341340780,1730818267584,-1729.15,0.000366,30]
[341340782,1730818267596,-2336.19,0.000366,30]
[341340784,1730818267607,-666.0,0.000366,120]
[341340786,1730818267616,-5315.8827348,0.00036627,2]
[341340788,1730818267626,-5000.0,0.00036671,30]
[341340790,1730818267635,-300.0,0.000368,13]
[341340792,1730818267645,-1942.41,0.00036849,120]
[341340795,1730818267654,-151.0,0.00036904,120]
[341340796,1730818267663,-500.0,0.00036986,22]
[341340798,1730818267672,-5000.0,0.00037041,30]
[341340800,1730818267681,-160.0,0.00037054,7]
[341340802,1730818267691,-1000.0,0.000372,80]
[341340804,1730818267703,-1899.81237125,0.00037207,2]
[341340806,1730818267712,-158.40841798,0.00037283,21]
[341340808,1730818267722,-226.38897976,0.00037291,5]
[341340810,1730818267731,-2000.0,0.00037291,5]
[341340812,1730818267740,-5000.0,0.00037415,30]
[341340814,1730818267750,-102660.34940912,0.000375,60]
[341340816,1730818267759,-150.0,0.000375,112]
[341340818,1730818267768,-903.34,0.000375,30]
[341340820,1730818267777,-3579.41,0.000375,30]
[341340822,1730818267786,-152.0,0.00037656,2]
[341340824,1730818267796,-2230.17,0.00037793,30]
[341340826,1730818267805,-300.0,0.000378,15]
[341340828,1730818267817,-500.0,0.00037808,25]
[341340830,1730818267827,-1942.41,0.00037808,120]
[341340832,1730818267836,-10912.0,0.000379,10]
[341340834,1730818267845,-1729.15,0.000379,30]
[341340836,1730818267855,-2336.19,0.000379,30]
[341340838,1730818267865,-5204.32402341,0.00037927,60]
[341340840,1730818267875,-1533.9160053,0.00037927,65]
[341340842,1730818267884,-5315.8827348,0.00037945,2]
[341340850,1730818267943,-152.0,0.00037973,2]
[341340852,1730818267953,-160.0,0.00037986,8]
[341340854,1730818267962,-559.651,0.00038,60]
[341340856,1730818267971,-1019.0,0.00038,2]
[341340858,1730818267980,-50000.0,0.00038,30]
[341340859,1730818267989,-4790.04869728,0.00038,120]
[341340861,1730818267999,-2187.05826631,0.00038,20]
[341340864,1730818268008,-152.24,0.00038,31]
[341340866,1730818268017,-152.24,0.00038,31]
[341340868,1730818268026,-152.24,0.00038,31]
[341340870,1730818268036,-152.24,0.00038,31]
[341340871,1730818268045,-152.24,0.00038,31]
[341340873,1730818268056,-152.24,0.00038,31]
[341340876,1730818268068,-152.24,0.00038,31]
[341340878,1730818268078,-152.24,0.00038,31]
[341340880,1730818268087,-152.24,0.00038,31]
[341340882,1730818268097,-152.24,0.00038,31]
[341340884,1730818268106,-152.24,0.00038,31]
[341340886,1730818268115,-152.24,0.00038,31]
[341340888,1730818268125,-152.24,0.00038,31]
[341340890,1730818268134,-152.24,0.00038,31]
[341340891,1730818268143,-152.24,0.00038,31]
[341340893,1730818268152,-152.24,0.00038,31]
[341340895,1730818268161,-152.24,0.00038,31]
[341340897,1730818268170,-152.24,0.00038,31]
[341340899,1730818268180,-152.24,0.00038,31]
[341340901,1730818268190,-152.24,0.00038,31]
[341340903,1730818268199,-600.0,0.00038294,2]
[341340905,1730818268209,-500.0,0.00038356,2]
[341340907,1730818268219,-192.588683,0.00038356,120]
[341340909,1730818268228,-210.0,0.000384,120]
[341340911,1730818268241,-500.0,0.0003863,28]
[341340914,1730818268252,-600.0,0.00038693,2]
[341340916,1730818268262,-151.0,0.00038748,15]
[341340918,1730818268271,-1942.41,0.00038767,120]
[341340920,1730818268281,-300.0,0.000388,17]
[341340922,1730818268291,-160.0,0.00038918,9]
[341340924,1730818268300,-7962.23222548,0.00038993,68]
[341340926,1730818268314,-5000.0,0.00038993,68]
[341340928,1730818268323,-5000.0,0.00038993,70]
[341340930,1730818268333,-5000.0,0.00038993,70]
[341340932,1730818268342,-5000.0,0.00038993,68]
[341340934,1730818268351,-10000.0,0.00039,30]
[341340936,1730818268361,-2500.0,0.00039,120]
[341340938,1730818268370,-477.49339932,0.00039,2]
[341340940,1730818268379,-5189.38905531,0.00039,120]
[341340942,1730818268388,-1000.0,0.00039,120]
[341340944,1730818268398,-903.34,0.00039,30]
[341340946,1730818268408,-3579.41,0.00039,30]
[341340948,1730818268417,-1199.42896407,0.00039092,2]
[341340950,1730818268428,-18443.20652886,0.000392,120]
[341340952,1730818268437,-588.27,0.000392,30]
[341340954,1730818268446,-151.0,0.00039205,120]
[341340956,1730818268456,-5315.8827348,0.00039264,2]
[341340958,1730818268466,-12252.64801474,0.00039303,2]
[341340960,1730818268475,-9276.32543481,0.00039356,66]
[341340962,1730818268485,-5000.0,0.00039356,66]
[341340964,1730818268495,-2127.72,0.00039397,30]
[341340966,1730818268505,-2127.72,0.00039397,30]
[341340969,1730818268515,-2127.72,0.00039397,30]
[341340971,1730818268524,-2127.72,0.00039397,30]
[341340973,1730818268533,-2127.72,0.00039397,30]
[341340975,1730818268545,-2127.72,0.00039397,30]
[341340977,1730818268556,-2127.72,0.00039397,30]
[341340979,1730818268569,-2127.72,0.00039397,30]
[341340981,1730818268579,-2127.72,0.00039397,30]
[341340984,1730818268589,-2127.72,0.00039397,30]
[341340986,1730818268599,-2127.72,0.00039397,30]
[341340988,1730818268609,-2127.72,0.00039397,30]
[341340990,1730818268618,-2127.72,0.00039397,30]
[341340992,1730818268627,-2127.72,0.00039397,30]
[341340994,1730818268637,-2127.72,0.00039397,30]
[341340996,1730818268648,-2127.72,0.00039397,30]
[341340998,1730818268657,-2127.72,0.00039397,30]
[341341000,1730818268666,-2127.72,0.00039397,30]
[341341002,1730818268677,-2127.72,0.00039397,30]
[341341004,1730818268686,-2127.72,0.00039397,30]
[341341006,1730818268696,-2127.72,0.00039397,30]
[341341008,1730818268707,-2127.72,0.00039397,30]
[341341010,1730818268716,-2127.72,0.00039397,30]
[341341012,1730818268725,-2127.9427143,0.00039397,30]
[341341014,1730818268735,-500.0,0.00039452,31]
[341341016,1730818268744,-151.0,0.00039452,120]
[341341018,1730818268754,-588.27,0.000395,30]
[341341020,1730818268763,-1729.15,0.000395,30]
[341341022,1730818268773,-2336.19,0.000395,30]
[341341024,1730818268783,-152.24,0.000395,31]
[341341026,1730818268793,-152.24,0.000395,31]
[341341028,1730818268802,-152.24,0.000395,31]
[341341030,1730818268815,-152.24,0.000395,31]
[341341033,1730818268826,-152.24,0.000395,31]
[341341035,1730818268836,-152.24,0.000395,31]
[341341037,1730818268846,-152.24,0.000395,31]
[341341039,1730818268855,-152.24,0.000395,31]
[341341041,1730818268865,-152.24,0.000395,31]
[341341043,1730818268874,-152.24,0.000395,31]
[341341045,1730818268884,-152.24,0.000395,31]
[341341047,1730818268893,-152.24,0.000395,31]
[341341054,1730818268950,-152.24,0.000395,31]
[341341056,1730818268960,-152.24,0.000395,31]
[341341058,1730818268970,-1899.81237125,0.00039553,2]
[341341060,1730818268980,-11755.96204355,0.000397,30]
[341341062,1730818268989,-1248.0,0.000397,49]
[341341064,1730818268998,-35430.29079699,0.000397,2]
[341341066,1730818269007,-500.0,0.00039726,2]
[341341068,1730818269017,-1942.41,0.00039726,120]
[341341070,1730818269026,-20117.54150353,0.000398,14]
[341341072,1730818269034,-300.0,0.000398,19]
[341341074,1730818269045,-151.0,0.000398,15]
[341341076,1730818269054,-160.0,0.0003985,10]
[341341078,1730818269066,-166.58155728,0.0003985,5]
[341341080,1730818269075,-225.569899,0.0003987,2]
[341341082,1730818269084,-152.0,0.00039871,14]
[341341084,1730818269093,-1351.0313,0.00039878,18]
[341341086,1730818269102,-843.38144975,0.000399,60]
[341341088,1730818269112,-152.24078166,0.000399,5]
[341341090,1730818269120,-556.0778235,0.0004,7]
[341341092,1730818269130,-4999.999999,0.0004,7]
[341341094,1730818269139,-223.0,0.0004,120]
[341341095,1730818269148,-6170.11569506,0.0004,120]
[341341097,1730818269158,-1193.3930004,0.0004,120]
[341341099,1730818269168,-223.37731081,0.0004,120]
[341341101,1730818269177,-500.0,0.0004,30]
[341341103,1730818269187,-40000.0,0.0004,120]
[341341106,1730818269197,-4010.69981698,0.0004,120]
[341341108,1730818269206,-6383.04617059,0.0004,30]
[341341110,1730818269215,-4765.19,0.0004,120]
[341341112,1730818269228,-21319.05023,0.0004,120]
[341341114,1730818269237,-14000.0,0.0004,4]
[341341116,1730818269250,-200.0,0.0004,120]
[341341118,1730818269259,-988.40963569,0.0004,2]
[341341120,1730818269269,-6704.73550569,0.0004,120]
[341341122,1730818269279,-3606.71030224,0.0004,2]
[341341124,1730818269290,-520.0,0.0004,120]
[341341126,1730818269299,-32605.6489301,0.0004,4]
[341341128,1730818269309,-1000.0,0.0004,120]
[341341130,1730818269322,-5817.530841,0.0004,40]
[341341132,1730818269332,-588.27,0.0004,30]
[341341134,1730818269341,-4998.88122762,0.0004,30]
[341341136,1730818269351,-5000.0,0.0004,120]
[341341138,1730818269360,-5000.0,0.0004,120]
[341341140,1730818269369,-20246.54837036,0.0004,14]
[341341142,1730818269380,-541.8,0.0004,2]
[341341144,1730818269390,-500.0,0.00040273,34]
[341341146,1730818269400,-3000.0,0.00040388,5]
[341341148,1730818269410,-4585.99,0.000404,7]
[341341151,1730818269420,-5315.8827348,0.00040582,2]
[341341152,1730818269429,-389.02567004,0.0004059,30]
[341341155,1730818269438,-260.49113712,0.0004059,30]
[341341156,1730818269447,-500.59140381,0.0004059,30]
[341341159,1730818269457,-505.09160497,0.0004059,30]
[341341160,1730818269466,-1942.41,0.00040684,120]
[341341162,1730818269476,-1216791.92779853,0.000408,120]
[341341164,1730818269485,-648.0,0.000409,3]
[341341166,1730818269494,-1000.0,0.000409,6]
[341341168,1730818269504,-1000.0,0.000409,2]
[341341170,1730818269514,-500.68,0.000409,10]
[341341172,1730818269524,-152773.72723997,0.00041,30]
[341341175,1730818269534,-1000.0,0.00041,120]
[341341177,1730818269544,-342637.84346656,0.00041,30]
[341341179,1730818269554,-27680.82448729,0.00041,2]
[341341181,1730818269566,-390112.3489205,0.00041,30]
[341341183,1730818269576,-138280.30210325,0.00041,30]
[341341185,1730818269585,-20361.55,0.00041,30]
[341341187,1730818269595,-5020.0,0.00041,120]
[341341189,1730818269604,-50000.0,0.00041,30]
[341341191,1730818269614,-508.0,0.00041,120]
[341341193,1730818269623,-1500.0,0.00041,2]
[341341195,1730818269633,-1500.0,0.00041,2]
[341341197,1730818269642,-1500.0,0.00041,2]
[341341199,1730818269651,-1500.0,0.00041,2]
[341341201,1730818269660,-1500.0,0.00041,2]
[341341203,1730818269669,-1500.0,0.00041,2]
[341341205,1730818269678,-1599.1,0.00041,2]
[341341207,1730818269688,-1500.0,0.00041,2]
[341341209,1730818269697,-1500.0,0.00041,2]
[341341211,1730818269706,-1500.0,0.00041,2]
[341341213,1730818269715,-1500.0,0.00041,2]
[341341215,1730818269724,-160134.0,0.00041,40]
[341341217,1730818269735,-4729.4919132,0.00041,30]
[341341219,1730818269746,-152.0,0.00041041,31]
[341341221,1730818269755,-152.0,0.00041041,31]
[341341223,1730818269764,-152.0,0.00041041,31]
[341341225,1730818269774,-152.0,0.00041041,31]
[341341227,1730818269783,-152.0,0.00041041,31]
[341341229,1730818269793,-336.66928527,0.00041095,120]
[341341231,1730818269803,-500.0,0.00041095,37]
[341341238,1730818269858,-500.0,0.00041095,2]
[341341240,1730818269868,-503.58898699,0.00041095,3]
[341341242,1730818269878,-500.0,0.00041095,90]
[341341244,1730818269888,-500.0,0.00041095,94]
[341341246,1730818269897,-500.0,0.00041095,98]
[341341248,1730818269907,-500.0,0.00041095,102]
[341341250,1730818269916,-697.54375257,0.00041095,2]
[341341252,1730818269926,-180.6284044,0.00041096,2]
[341341254,1730818269936,-598.30746045,0.00041096,31]
[341341256,1730818269945,-598.30746045,0.00041096,31]
[341341258,1730818269954,-598.30746045,0.00041096,31]
[341341260,1730818269963,-598.30746045,0.00041096,31]
[341341262,1730818269972,-598.30746045,0.00041096,31]
[341341263,1730818269982,-598.30746045,0.00041096,31]
[341341265,1730818269992,-598.30746045,0.00041096,31]
[341341267,1730818270002,-598.30746045,0.00041096,31]
[341341269,1730818270011,-598.30746045,0.00041096,31]
[341341271,1730818270020,-598.30746045,0.00041096,31]
[341341273,1730818270029,-598.30746045,0.00041096,31]
[341341275,1730818270039,-598.30746045,0.00041096,31]
[341341277,1730818270049,-598.30746045,0.00041096,31]
[341341279,1730818270058,-598.30746045,0.00041096,31]
[341341281,1730818270070,-598.30746045,0.00041096,31]
[341341283,1730818270079,-598.30746045,0.00041096,31]
[341341285,1730818270089,-598.30746045,0.00041096,31]
[341341287,1730818270098,-598.30746045,0.00041096,31]
[341341289,1730818270108,-598.30746045,0.00041096,31]
[341341291,1730818270117,-598.30746045,0.00041096,31]
[341341293,1730818270126,-598.30746045,0.00041096,31]
[341341295,1730818270136,-598.30746045,0.00041096,31]
[341341297,1730818270146,-598.30746045,0.00041096,31]
[341341299,1730818270154,-598.30746045,0.00041096,31]
[341341301,1730818270164,-598.30746045,0.00041096,31]
[341341303,1730818270173,-598.30746045,0.00041096,31]
[341341305,1730818270183,-598.30746045,0.00041096,31]
[341341307,1730818270193,-598.30746045,0.00041096,31]
[341341309,1730818270202,-598.30746045,0.00041096,31]
[341341311,1730818270212,-598.30746045,0.00041096,31]
[341341313,1730818270221,-598.30746045,0.00041096,31]
[341341315,1730818270232,-598.30746045,0.00041096,31]
[341341317,1730818270244,-598.30746045,0.00041096,31]
[341341319,1730818270254,-598.30746045,0.00041096,31]
[341341321,1730818270263,-598.30746045,0.00041096,31]
[341341324,1730818270273,-598.30746045,0.00041096,31]
[341341326,1730818270282,-598.30746045,0.00041096,31]
[341341328,1730818270292,-598.30746045,0.00041096,31]
[341341330,1730818270301,-598.30746045,0.00041096,31]
[341341332,1730818270312,-598.30746045,0.00041096,31]
[341341334,1730818270323,-598.30746045,0.00041096,31]
[341341336,1730818270333,-598.30746045,0.00041096,31]
[341341338,1730818270343,-598.30746045,0.00041096,31]
[341341339,1730818270352,-598.30746045,0.00041096,31]
[341341341,1730818270361,-598.30746045,0.00041096,31]
[341341343,1730818270370,-598.30746045,0.00041096,31]
[341341345,1730818270379,-598.30746045,0.00041096,31]
[341341347,1730818270388,-598.30746045,0.00041096,31]
[341341349,1730818270397,-598.30746045,0.00041096,31]
[341341351,1730818270408,-598.30746045,0.00041096,31]
[341341353,1730818270418,-598.30746045,0.00041096,31]
[341341355,1730818270427,-200.0,0.000411,120]
[341341357,1730818270437,-2500.0,0.00041132,10]
[341341359,1730818270446,-438.32404,0.000412,120]
[341341361,1730818270455,-500.0,0.000413,120]
[341341363,1730818270465,-4079.41109022,0.00041414,60]
[341341365,1730818270474,-151.0,0.00041507,120]
[341341367,1730818270483,-1942.41,0.00041643,120]
[341341369,1730818270492,-811511.75876431,0.000418,120]
[341341371,1730818270501,-280.38935,0.000419,120]
[341341373,1730818270510,-1899.81237125,0.000419,28]
[341341375,1730818270520,-5315.8827348,0.000419,2]
[341341377,1730818270529,-3272.57368605,0.00041914,120]
[341341379,1730818270539,-248.24198752,0.00041917,40]
[341341381,1730818270549,-500.0,0.00042,120]
[341341383,1730818270558,-2972298.35599433,0.00042,30]
[341343887,1730818297300,520.83333333,0.00020185,2]
[341350458,1730818872401,35357.59,0.0002,2]
[341350459,1730818909160,520.83333333,0.00020185,2]
[341350465,1730819225131,-160.530949,0.0002352,2]
[341350466,1730819225157,-532.065919,0.00024024,2]
[341350467,1730819225182,-166.666666,0.00024055,2]
[341350468,1730819225210,-520.83333333,0.00024055,2]
[341350469,1730819225233,-3000.0,0.0002447,2]
[341350470,1730819225256,-532.065919,0.00024709,2]
[341350471,1730819225283,-300.0,0.00025046,2]
[341350472,1730819225309,-300.0,0.00025046,2]
[341350473,1730819225334,-500.0,0.00025047,2]
[341350474,1730819225357,-219.2571329,0.00025047,2]
[341350475,1730819225381,-250.0,0.00025047,2]
[341350476,1730819225408,-500.0,0.00025047,2]
[341350477,1730819225432,-500.0,0.00025047,2]
[341350478,1730819225456,-500.0,0.00025047,2]
[341350479,1730819225480,-500.0,0.00025047,2]
[341350480,1730819225504,-500.0,0.00025047,2]
[341350481,1730819225531,-500.0,0.00025047,2]
[341350482,1730819225556,-500.0,0.00025047,2]
[341350483,1730819225579,-500.0,0.00025047,2]
[341350484,1730819225603,-500.0,0.00025047,2]
[341350485,1730819225627,-500.0,0.00025047,2]
[341350486,1730819225655,-500.0,0.00025047,2]
[341350487,1730819225679,-500.0,0.00025047,2]
[341350488,1730819225703,-500.0,0.00025047,2]
[341350489,1730819225729,-500.0,0.00025047,2]
[341350490,1730819225758,-500.0,0.00025047,2]
[341350491,1730819225787,-500.0,0.00025047,2]
[341350492,1730819225814,-500.0,0.00025047,2]
[341350493,1730819225840,-500.0,0.00025047,2]
[341350494,1730819225866,-500.0,0.00025047,2]
[341350495,1730819225897,-500.0,0.00025047,2]
[341350496,1730819225921,-500.0,0.00025047,2]
[341350497,1730819225944,-500.0,0.00025047,2]
[341350498,1730819225968,-500.0,0.00025047,2]
[341350499,1730819225992,-500.0,0.00025047,2]
[341350500,1730819226015,-500.0,0.00025047,2]
[341350501,1730819226039,-500.0,0.00025047,2]
[341350502,1730819226063,-500.0,0.00025047,2]
[341350503,1730819226085,-500.0,0.00025047,2]
[341350504,1730819226108,-500.0,0.00025047,2]
[341350505,1730819226131,-500.0,0.00025047,2]
[341350506,1730819226157,-500.0,0.00025047,2]
[341350507,1730819226180,-500.0,0.00025047,2]
[341350508,1730819226203,-500.0,0.00025047,2]
[341350509,1730819226227,-500.0,0.00025047,2]
[341350510,1730819226251,-500.0,0.00025047,2]
[341350511,1730819226273,-500.0,0.00025047,2]
[341350512,1730819226297,-215.26336227,0.00025047,2]
[341350513,1730819226319,-500.0,0.00025047,2]
[341350514,1730819226342,-500.0,0.00025047,2]
[341350515,1730819226365,-500.0,0.00025047,2]
[341350516,1730819226390,-500.0,0.00025047,2]
[341350517,1730819226414,-500.0,0.00025047,2]
[341350518,1730819226436,-500.0,0.00025047,2]
[341350519,1730819226460,-500.0,0.00025047,2]
[341350520,1730819226483,-500.0,0.00025047,2]
[341350521,1730819226507,-500.0,0.00025047,2]
[341350522,1730819226530,-500.0,0.00025047,2]
[341350523,1730819226553,-500.0,0.00025047,2]
[341350524,1730819226576,-500.0,0.00025047,2]
[341350525,1730819226599,-500.0,0.00025047,2]
[341350526,1730819226621,-506.87410136,0.00025047,2]
[341350527,1730819226646,-500.0,0.00025047,2]
[341350528,1730819226668,-500.0,0.00025047,2]
[341350529,1730819226690,-500.0,0.00025047,2]
[341350530,1730819226712,-500.0,0.00025047,2]
[341350531,1730819226735,-500.0,0.00025047,2]
[341350532,1730819226759,-500.0,0.00025047,2]
[341350533,1730819226781,-191.65056156,0.00025047,2]
[341350535,1730819234897,190.857155,0.00013973,2]
[341350536,1730819237082,-190.857155,0.00020447,2]
[341350537,1730819237105,-308.34943844,0.00025047,2]
[341350538,1730819237127,-500.0,0.00025047,2]
[341350539,1730819237150,-500.0,0.00025047,2]
[341350540,1730819237172,-500.0,0.00025047,2]
[341350541,1730819237194,-500.0,0.00025047,2]
[341350542,1730819237217,-500.0,0.00025047,2]
[341350543,1730819237239,-500.0,0.00025047,2]
[341350544,1730819237262,-500.0,0.00025047,2]
[341350545,1730819237284,-300.0,0.00025047,2]
[341350546,1730819237306,-5000.0,0.00025049,2]
[341350547,1730819237437,-206.22857019,0.00025051,2]
[341350548,1730819237461,-532.065919,0.00025394,2]
[341350549,1730819237485,-190.857155,0.00026921,2]
[341350550,1730819237514,-1088.94505716,0.00027006,2]
[341350551,1730819237537,-6913.42436821,0.00027006,2]
[341350552,1730819237568,-920.04791829,0.00027006,2]
[341350554,1730819240100,-17066.5277135,0.00027006,2]
[341350555,1730819240124,-1033.15515351,0.00027234,2]
[341350556,1730819240148,-166.666666,0.00027334,2]
[341350557,1730819240171,-170.328,0.00027549,17]
[341350558,1730819240193,-514.1334172,0.00028751,5]
[341350559,1730819240214,-500.0,0.00029073,5]
[341350560,1730819240236,-500.0,0.00029114,5]
[341350561,1730819240258,-500.0,0.00029187,5]
[341350562,1730819240279,-500.0,0.00029187,5]
[341350563,1730819240300,-500.0,0.00030036,2]
[341350564,1730819240321,-562.16180241,0.00030136,3]